bitfinex-derivatives/quotes_BTCF0:USTF0_20251119
["timestamp","ask_amount","ask_price","bid_price","bid_amount"]
[1763593862641,0.07465784,91293.0,91292.0,0.38759803]
[1763593862948,0.07465784,91293.0,91292.0,0.41277803]
[1763593862949,0.02413784,91293.0,91292.0,0.41277803]
[1763593863155,0.02409,91307.0,91306.0,0.1594256]
[1763593863335,0.46756,91309.0,91308.0,0.04978]
[1763593863536,0.54227707,91309.0,91308.0,0.00219803]
[1763593863736,0.54227707,91309.0,91308.0,0.05197803]
[1763593863942,0.18147707,91309.0,91308.0,0.05197803]
[1763593864753,0.05052,91304.0,91303.0,0.3608]
[1763593865043,0.05052,91287.0,91286.0,0.10994347]
[1763593865234,0.07471707,91287.0,91286.0,0.1121415]
[1763593865544,0.07471707,91287.0,91286.0,0.1367415]
[1763593865731,0.07471707,91287.0,91286.0,0.1619215]
[1763593866341,0.18438547,91287.0,91286.0,0.0024719]
[1763593866843,0.07471707,91287.0,91286.0,0.1619215]
[1763593867044,0.07471707,91287.0,91286.0,0.0024719]
[1763593867546,0.07471707,91287.0,91286.0,0.00027387]
[1763593868547,0.07471707,91287.0,91286.0,0.0024719]
[1763593871350,0.07471707,91287.0,91286.0,0.0270719]
[1763593871550,0.02419707,91287.0,91286.0,0.4130519]
[1763593871844,0.15732,91305.0,91304.0,0.159428]
[1763593872148,0.18148713,91305.0,91304.0,0.16162603]
[1763593872549,0.15505713,91305.0,91304.0,0.16162603]
[1763593872742,0.13096713,91305.0,91304.0,0.16162603]
[1763593873341,0.13096713,91305.0,91304.0,0.52242603]
[1763593874149,0.18148713,91305.0,91304.0,0.52242603]
[1763593874749,0.18148713,91305.0,91304.0,0.36299803]
[1763593875051,0.18148713,91305.0,91304.0,0.41277803]
[1763593875851,0.18148713,91305.0,91304.0,0.05197803]
[1763593876149,0.3608,91317.0,91304.0,0.05197803]
[1763593876150,0.03940163,91329.0,91324.0,0.159404]
[1763593876346,0.03940163,91335.0,91332.0,0.1593944]
[1763593876548,0.3608,91345.0,91332.0,0.1593944]
[1763593876549,0.03936585,91356.0,91350.0,0.1095928]
[1763593876739,0.07804616,91379.0,91350.0,0.1095928]
[1763593876740,0.06538,91377.0,91376.0,0.1095616]
[1763593876942,0.06538,91377.0,91376.0,0.11175963]
[1763593877147,0.06538,91377.0,91376.0,0.36299803]
[1763593877350,0.06538,91377.0,91376.0,0.00219803]
[1763593879343,0.01486,91377.0,91376.0,0.00219803]
[1763593879546,0.06638,91377.0,91376.0,0.00219803]
[1763593879851,0.06738,91377.0,91376.0,0.00219803]
[1763593880240,0.06738,91377.0,91376.0,0.36299803]
[1763593880642,0.05052,91369.0,91368.0,0.3608]
[1763593880842,0.05052,91349.0,91348.0,0.3608]
[1763593881053,0.05052,91349.0,91338.0,0.3608]
[1763593881054,0.160126,91339.0,91338.0,0.3608]
[1763593881348,0.160126,91339.0,91338.0,0.36299803]
[1763593881553,0.05052,91339.0,91338.0,0.36299803]
[1763593882549,0.05152,91339.0,91338.0,0.00219803]
[1763593882754,0.1601368,91330.0,91329.0,0.00016421]
[1763593882958,0.1601368,91330.0,91329.0,0.00236224]
[1763593883350,0.05052,91330.0,91329.0,0.00236224]
[1763593883952,0.02609,91339.0,91338.0,0.1342072]
[1763593884152,0.1601308,91335.0,91334.0,0.3608]
[1763593884454,0.1601308,91335.0,91334.0,0.36299803]
[1763593885244,0.02409,91335.0,91334.0,0.41277803]
[1763593885451,0.2173661,91339.0,91338.0,0.0246]
[1763593885452,0.2414561,91339.0,91338.0,0.0246]
[1763593885749,0.15828,91339.0,91338.0,0.02679803]
[1763593885951,0.10676,91339.0,91338.0,0.06606803]
[1763593886157,0.3608,91350.0,91347.0,0.05824]
[1763593886353,0.3608,91350.0,91347.0,0.06043803]
[1763593887549,0.16768931,91348.0,91347.0,0.06043803]
[1763593888258,0.05809421,91348.0,91347.0,0.06043803]
[1763593889060,0.05909421,91348.0,91347.0,0.06043803]
[1763593889458,0.06009421,91348.0,91347.0,0.06043803]
[1763593889970,0.06009421,91348.0,91347.0,0.42123803]
[1763593890156,0.06009421,91348.0,91347.0,0.39280803]
[1763593890456,0.1675407,91335.0,91334.0,0.3608]
[1763593890764,0.1675467,91330.0,91323.0,0.00013304]
[1763593890964,0.1675467,91330.0,91329.0,0.06060224]
[1763593891464,0.1675467,91330.0,91329.0,0.00016421]
[1763593891760,0.5283467,91330.0,91329.0,0.00016421]
[1763593891965,0.1707739,91324.0,91323.0,0.00013304]
[1763593892267,0.06115,91302.0,91301.0,0.39133]
[1763593892465,0.1096453,91307.0,91301.0,0.36299803]
[1763593892761,0.03118,91302.0,91301.0,0.47264953]
[1763593892962,0.06115,91302.0,91301.0,0.47264953]
[1763593893267,0.00016421,91311.0,91301.0,0.36299803]
[1763593893462,0.00016421,91311.0,91310.0,0.5303108]
[1763593893660,0.06141154,91311.0,91310.0,0.00219803]
[1763593893957,0.06141154,91311.0,91310.0,0.06206803]
[1763593894558,0.00026154,91311.0,91310.0,0.06206803]
[1763593896760,0.10672,91324.0,91310.0,0.06206803]
[1763593896953,0.3608,91328.0,91327.0,0.1694903]
[1763593897154,0.1096165,91331.0,91327.0,0.00219803]
[1763593897368,0.1096165,91331.0,91330.0,0.03053]
[1763593897668,0.06115,91334.0,91333.0,0.1096119]
[1763593897863,0.06115,91334.0,91333.0,0.11180993]
[1763593898652,0.03118,91334.0,91333.0,0.17167993]
[1763593898852,0.10672,91335.0,91334.0,0.05987]
[1763593899163,0.2475107,91335.0,91334.0,0.06206803]
[1763593899469,0.2774807,91335.0,91334.0,0.06206803]
[1763593899768,0.06115,91325.0,91324.0,0.10978811]
[1763593899965,0.10672,91335.0,91328.0,0.05987]
[1763593900165,0.16787,91335.0,91334.0,0.00219803]
[1763593900861,0.03118,91327.0,91326.0,0.1096208]
[1763593901064,0.02997,91330.0,91329.0,0.1096176]
[1763593901264,0.06115,91330.0,91329.0,0.11181563]
[1763593901465,0.03118,91330.0,91329.0,0.17168563]
[1763593901966,0.1707667,91330.0,91329.0,0.06206803]
[1763593902163,0.06115,91330.0,91329.0,0.06206803]
[1763593902871,0.06215,91330.0,91329.0,0.03272803]
[1763593903171,0.1727667,91330.0,91329.0,0.03272803]
[1763593903366,0.1727667,91330.0,91329.0,0.00219803]
[1763593903674,0.06315,91330.0,91329.0,0.00219803]
[1763593904660,0.06315,91330.0,91324.0,0.00016421]
[1763593904661,0.06115,91325.0,91324.0,0.00016421]
[1763593904861,0.08525283,91325.0,91324.0,0.00016421]
[1763593905070,0.08525283,91325.0,91324.0,0.06223224]
[1763593905265,0.19487553,91325.0,91324.0,0.03289224]
[1763593906074,0.08525283,91325.0,91324.0,0.06223224]
[1763593907070,0.3608,91330.0,91329.0,0.05987]
[1763593907271,0.55567479,91330.0,91329.0,0.03272803]
[1763593907966,0.55567479,91330.0,91329.0,0.00219803]
[1763593908474,0.55667479,91330.0,91329.0,0.00219803]
[1763593908663,0.55767479,91330.0,91329.0,0.00219803]
[1763593908862,0.55767479,91330.0,91324.0,0.00016421]
[1763593908863,0.1707728,91325.0,91324.0,0.00016421]
[1763593909063,0.19488079,91325.0,91324.0,0.00016421]
[1763593909768,0.08525799,91325.0,91324.0,0.06223224]
[1763593910562,0.08525799,91325.0,91324.0,0.03289224]
[1763593910768,0.08525799,91325.0,91324.0,0.00236224]
[1763593912079,0.08525799,91325.0,91324.0,0.17185624]
[1763593912375,0.19488079,91325.0,91324.0,0.14251624]
[1763593912565,0.08525799,91325.0,91324.0,0.14251624]
[1763593912775,0.02410799,91325.0,91324.0,0.17185624]
[1763593912968,0.08537368,91329.0,91328.0,0.1694892]
[1763593913472,0.08537368,91329.0,91328.0,0.17168723]
[1763593913881,0.05540368,91329.0,91328.0,0.17168723]
[1763593914179,0.02422368,91329.0,91328.0,0.17168723]
[1763593914384,0.02522368,91329.0,91328.0,0.17168723]
[1763593914768,0.02622368,91329.0,91328.0,0.17168723]
[1763593915169,0.08737368,91329.0,91328.0,0.06206803]
[1763593915376,0.02422368,91329.0,91328.0,0.06206803]
[1763593915576,0.02422368,91329.0,91328.0,0.42286803]
[1763593915967,0.0392707,91344.0,91342.0,0.05987]
[1763593916174,0.02438297,91343.0,91342.0,0.06206803]
[1763593916774,0.00016421,91343.0,91342.0,0.06206803]
[1763593917183,0.0392707,91361.0,91360.0,0.05987]
[1763593917372,0.0392707,91364.0,91363.0,0.1694472]
[1763593917567,0.0392707,91364.0,91363.0,0.17164523]
[1763593917784,0.05538929,91364.0,91363.0,0.17164523]
[1763593918174,0.05538929,91364.0,91363.0,0.06206803]
[1763593918375,0.05638929,91364.0,91363.0,0.06206803]
[1763593918778,0.05738929,91364.0,91363.0,0.06206803]
[1763593918980,0.44815929,91364.0,91363.0,0.00219803]
[1763593919574,0.06115,91355.0,91354.0,0.00016421]
[1763593919779,0.19494609,91355.0,91354.0,0.03289224]
[1763593920180,0.19494609,91355.0,91354.0,0.00236224]
[1763593921083,0.02420929,91355.0,91354.0,0.06223224]
[1763593922388,0.1682794,91362.0,91361.0,0.02782]
[1763593922684,0.19246457,91362.0,91361.0,0.06211803]
[1763593922883,0.08288517,91362.0,91361.0,0.06211803]
[1763593923084,0.05104517,91362.0,91361.0,0.06211803]
[1763593923287,0.02418517,91362.0,91361.0,0.06211803]
[1763593923780,0.10672,91366.0,91365.0,0.1694948]
[1763593923978,0.29917235,91366.0,91365.0,0.06211803]
[1763593924182,0.29917235,91366.0,91365.0,0.00219803]
[1763593925279,0.29917235,91366.0,91365.0,0.03001803]
[1763593925692,0.13189875,91366.0,91365.0,0.06211803]
[1763593925881,0.19059875,91366.0,91365.0,0.06211803]
[1763593926079,0.30581235,91366.0,91358.0,0.3608]
[1763593926285,0.30581235,91366.0,91324.0,0.3608]
[1763593926286,0.01527,91344.0,91324.0,0.3608]
[1763593926485,0.01527,91344.0,91316.0,0.00013812]
[1763593926486,0.0587,91317.0,91316.0,0.00013812]
[1763593927185,0.02686,91301.0,91293.0,0.0288783]
[1763593927379,0.0587,91301.0,91300.0,0.00219803]
[1763593927580,0.0587,91301.0,91291.0,0.00016421]
[1763593927781,0.1096528,91300.0,91292.0,0.00219803]
[1763593927982,0.1683528,91300.0,91299.0,0.3608]
[1763593928181,0.0587,91292.0,91291.0,0.00016421]
[1763593928377,0.4195,91292.0,91291.0,0.00016421]
[1763593928776,0.4195,91292.0,91291.0,0.00116421]
[1763593930292,0.4195,91292.0,91291.0,0.00016421]
[1763593933791,0.0587,91287.0,91277.0,0.3608]
[1763593933977,0.16542,91287.0,91277.0,0.3608]
[1763593934178,0.16542,91287.0,91266.0,0.3608]
[1763593934179,0.02686,91268.0,91266.0,0.3608]
[1763593934491,0.1683997,91261.0,91260.0,0.02782]
[1763593934695,0.0587,91258.0,91257.0,0.3608]
[1763593936096,0.02686,91252.0,91251.0,0.00010965]
[1763593936290,0.02686,91252.0,91251.0,0.00230768]
[1763593936485,0.0587,91252.0,91251.0,0.00230768]
[1763593936891,0.0587,91252.0,91249.0,0.00012152]
[1763593936892,0.0587,91250.0,91249.0,0.00012152]
[1763593937098,0.05883764,91250.0,91249.0,0.00012152]
[1763593938204,0.0587,91247.0,91236.0,0.3608]
[1763593938400,0.1684285,91237.0,91236.0,0.3608]
[1763593938696,0.1684285,91237.0,91228.0,0.3608]
[1763593938697,0.1684381,91229.0,91228.0,0.3608]
[1763593939106,0.0587,91229.0,91228.0,0.3608]
[1763593939395,0.0587,91217.0,91216.0,0.3608]
[1763593939897,0.0587,91210.0,91209.0,0.3608]
[1763593940389,0.0587,91210.0,91209.0,0.36299803]
[1763593940709,0.0587,91210.0,91206.0,0.00027411]
[1763593940710,0.0587,91207.0,91206.0,0.00027411]
[1763593940997,0.10676,91210.0,91209.0,0.05992]
[1763593941190,0.16546,91210.0,91209.0,0.06211803]
[1763593941501,0.10676,91210.0,91209.0,0.06411803]
[1763593941694,0.00013803,91217.0,91216.0,0.05992]
[1763593941895,0.00013803,91217.0,91216.0,0.17187183]
[1763593942601,0.05883803,91217.0,91216.0,0.00219803]
[1763593942787,0.0587,91210.0,91209.0,0.001]
[1763593942983,0.0587,91210.0,91209.0,0.00219803]
[1763593943186,0.0587,91210.0,91209.0,0.00319803]
[1763593943803,0.0587,91210.0,91209.0,0.00219803]
[1763593943989,0.0587,91210.0,91209.0,0.00419803]
[1763593945591,0.0587,91210.0,91209.0,0.002]
[1763593945995,0.0587,91210.0,91209.0,0.06311803]
[1763593946200,0.3608,91213.0,91212.0,0.05992]
[1763593946508,0.00013803,91217.0,91216.0,0.0549]
[1763593946693,0.4676,91232.0,91225.0,0.162203]
[1763593946893,0.4676,91232.0,91225.0,0.16440103]
[1763593947202,0.1068,91232.0,91225.0,0.16440103]
[1763593947393,0.0249344,91226.0,91225.0,0.05465803]
[1763593948004,0.0001644,91226.0,91225.0,0.05465803]
[1763593948304,0.0001644,91226.0,91225.0,0.41545803]
[1763593948498,0.00025757,91226.0,91225.0,0.41545803]
[1763593949103,0.1068,91236.0,91235.0,0.05246]
[1763593949299,0.1068,91236.0,91235.0,0.16438893]
[1763593949890,6.415e-05,91236.0,91235.0,0.16438893]
[1763593950097,6.415e-05,91236.0,91235.0,0.05465803]
[1763593950504,0.0001644,91245.0,91244.0,0.05246]
[1763593950696,0.0001644,91245.0,91244.0,0.16437813]
[1763593951209,0.17870707,91270.0,91262.0,0.1350785]
[1763593951401,0.1068,91263.0,91262.0,0.16435653]
[1763593952404,0.1068,91263.0,91262.0,0.05465803]
[1763593953502,0.15693,91263.0,91262.0,0.00219803]
[1763593953719,0.15793,91263.0,91262.0,0.00219803]
[1763593953894,0.15893,91263.0,91262.0,0.00219803]
[1763593954098,0.15893,91263.0,91257.0,0.3608]
[1763593954296,0.15893,91263.0,91253.0,0.0001644]
[1763593954297,0.1597881,91254.0,91253.0,0.0001644]
[1763593954495,0.1597881,91254.0,91234.0,0.3763]
[1763593954496,0.1598001,91244.0,91234.0,0.3763]
[1763593954705,0.1344509,91235.0,91234.0,0.402]
[1763593954904,0.1344509,91235.0,91234.0,0.40419803]
[1763593955401,0.05008,91235.0,91234.0,0.36299803]
[1763593955604,0.28550707,91244.0,91243.0,0.1624413]
[1763593955605,0.1069644,91244.0,91243.0,0.1624413]
[1763593955804,0.16040552,91244.0,91243.0,0.16463933]
[1763593955993,0.13568552,91244.0,91243.0,0.05491803]
[1763593956398,0.02888552,91244.0,91243.0,0.05491803]
[1763593957094,0.02888552,91244.0,91243.0,0.05591803]
[1763593957601,0.02888552,91244.0,91243.0,0.05491803]
[1763593957907,0.02888552,91244.0,91243.0,0.05591803]
[1763593959308,0.02888552,91244.0,91243.0,0.41671803]
[1763593959699,0.02888552,91244.0,91243.0,0.41571803]
[1763593959903,0.02865422,91244.0,91243.0,0.41671803]
[1763593960503,0.02865422,91244.0,91243.0,0.41771803]
[1763593963004,0.02865422,91244.0,91243.0,0.41671803]
[1763593963207,0.0392707,91244.0,91243.0,0.41771803]
[1763593963504,7e-07,91247.0,91246.0,0.1624377]
[1763593963708,7e-07,91248.0,91247.0,0.05272]
[1763593963908,0.05910245,91252.0,91251.0,0.1624317]
[1763593964203,0.0001644,91253.0,91252.0,0.05272]
[1763593964406,0.1098737,91253.0,91252.0,0.05491803]
[1763593964606,0.0001644,91253.0,91252.0,0.05491803]
[1763593965401,0.0001644,91253.0,91252.0,0.41571803]
[1763593966510,0.0001644,91253.0,91252.0,0.41671803]
[1763593966800,0.05890551,91258.0,91257.0,0.05272]
[1763593967005,0.05890551,91259.0,91257.0,0.00219803]
[1763593967210,0.05890551,91260.0,91259.0,0.1624221]
[1763593967410,0.05890551,91260.0,91259.0,0.16462013]
[1763593967714,0.02472,91268.0,91267.0,0.16241]
[1763593967920,0.02472,91268.0,91267.0,0.05491803]
[1763593968219,0.05008,91268.0,91267.0,0.05491803]
[1763593969110,0.1098551,91269.0,91267.0,0.05491803]
[1763593969111,0.0001644,91269.0,91268.0,0.1624112]
[1763593969309,0.0502444,91269.0,91268.0,0.05491803]
[1763593970410,0.0502444,91269.0,91268.0,0.00219803]
[1763593971110,0.1096912,91268.0,91267.0,0.001]
[1763593971412,0.05008,91249.0,91248.0,0.3608]
[1763593971613,0.02472,91254.0,91253.0,0.1367288]
[1763593971820,0.02472,91254.0,91253.0,0.16462683]
[1763593972118,0.10676,91259.0,91258.0,0.1624233]
[1763593972119,0.13148,91259.0,91258.0,0.1624233]
[1763593972322,0.18075693,91259.0,91258.0,0.16462133]
[1763593972506,0.05008,91249.0,91248.0,0.3618]
[1763593972712,0.05008,91249.0,91248.0,0.52643333]
[1763593973717,0.05008,91249.0,91248.0,0.52743333]
[1763593973718,0.02472,91249.0,91248.0,0.52743333]
[1763593973918,0.10676,91259.0,91258.0,0.1624233]
[1763593974113,0.1306538,91259.0,91258.0,0.16462133]
[1763593974310,0.1306538,91259.0,91258.0,0.52542133]
[1763593975418,0.1306538,91259.0,91258.0,0.41571803]
[1763593975610,0.1807338,91259.0,91258.0,0.05491803]
[1763593975814,0.0739738,91259.0,91258.0,0.00219803]
[1763593976312,0.0739738,91259.0,91258.0,0.11190133]
[1763593976821,0.0739738,91259.0,91258.0,0.13760133]
[1763593977018,0.09330616,91278.0,91258.0,0.13760133]
[1763593977019,0.3608,91282.0,91268.0,0.1624112]
[1763593977218,0.3608,91282.0,91268.0,0.16460923]
[1763593977518,0.3608,91282.0,91268.0,0.05491803]
[1763593977519,0.0502444,91269.0,91268.0,0.05491803]
[1763593977713,0.0502444,91269.0,91268.0,0.00219803]
[1763593978222,0.0502444,91269.0,91268.0,0.05491803]
[1763593978522,0.0502444,91269.0,91268.0,0.05591803]
[1763593979020,0.0502444,91269.0,91268.0,0.00319803]
[1763593979422,0.0502444,91269.0,91268.0,0.11388923]
[1763593980121,0.0502444,91269.0,91268.0,0.11288923]
[1763593980511,0.0502444,91269.0,91268.0,0.11188923]
[1763593980711,0.0502444,91269.0,91268.0,0.16560923]
[1763593980911,0.0001644,91269.0,91268.0,0.16560923]
[1763593981113,0.0001644,91269.0,91268.0,0.16460923]
[1763593981312,0.0001644,91269.0,91268.0,0.16560923]
[1763593981613,0.3608,91282.0,91281.0,0.1623956]
[1763593981814,0.10672,91290.0,91285.0,0.1616808]
[1763593982024,0.10672,91290.0,91285.0,0.16387883]
[1763593982224,0.05888279,91302.0,91285.0,0.11186883]
[1763593982524,0.0975577,91317.0,91285.0,0.11186883]
[1763593982525,0.05888279,91320.0,91315.0,0.1096348]
[1763593982819,0.00043806,91326.0,91317.0,0.05322803]
[1763593983317,0.1096228,91325.0,91318.0,0.1096312]
[1763593983621,0.1599028,91325.0,91324.0,0.05103]
[1763593983809,0.1599028,91325.0,91324.0,0.05322803]
[1763593984619,0.1599028,91325.0,91324.0,0.00219803]
[1763593986814,0.05028,91325.0,91324.0,0.00219803]
[1763593988926,0.05028,91325.0,91324.0,0.02691803]
[1763593989122,0.00043806,91326.0,91325.0,0.1606528]
[1763593989428,0.00043806,91326.0,91325.0,0.16285083]
[1763593990331,0.00043806,91326.0,91325.0,0.16385083]
[1763593990622,0.05071806,91326.0,91325.0,0.05422803]
[1763593990818,0.05071806,91326.0,91325.0,0.00419803]
[1763593991623,0.05028,91321.0,91302.0,0.3608]
[1763593991926,0.05028,91308.0,91307.0,0.02708234]
[1763593992119,0.05028,91308.0,91307.0,0.05339234]
[1763593992716,0.05028,91308.0,91307.0,0.16303674]
[1763593993011,0.05028,91308.0,91307.0,0.05339234]
[1763593993422,0.05028,91308.0,91307.0,0.05439234]
[1763593993826,0.05028,91308.0,91307.0,0.00116431]
[1763593994027,0.15696,91308.0,91307.0,0.00116431]
[1763593994226,0.15696,91308.0,91307.0,0.00016431]
[1763593994417,0.15696,91308.0,91307.0,0.00216431]
[1763593994726,0.15696,91308.0,91307.0,0.00116431]
[1763593994927,0.15696,91308.0,91307.0,0.00216431]
[1763593995224,0.02592,91287.0,91286.0,0.1606994]
[1763593995425,0.05028,91287.0,91286.0,0.16289743]
[1763593996026,0.05028,91294.0,91293.0,0.109661]
[1763593996214,0.05028,91294.0,91293.0,0.13657903]
[1763593996413,0.17870707,91300.0,91293.0,0.16288903]
[1763593996730,0.22898707,91300.0,91299.0,0.160684]
[1763593996922,0.05028,91300.0,91299.0,0.05322803]
[1763593997519,0.00016431,91303.0,91299.0,0.05322803]
[1763593997520,0.00016431,91303.0,91302.0,0.05103]
[1763593997719,0.00016431,91303.0,91302.0,0.05322803]
[1763593999120,0.05044431,91303.0,91302.0,0.02691803]
[1763593999431,0.00016431,91303.0,91302.0,0.16287843]
[1763593999926,0.00016431,91303.0,91302.0,0.00219803]
[1763593999927,0.05044431,91303.0,91302.0,0.00219803]
[1763594000318,0.05044431,91303.0,91302.0,0.00319803]
[1763594000515,0.41124431,91303.0,91302.0,0.00319803]
[1763594000719,0.41124431,91303.0,91302.0,0.00219803]
[1763594001021,0.41124431,91303.0,91302.0,0.05422803]
[1763594001415,0.00016431,91303.0,91302.0,0.05322803]
[1763594001624,0.00016431,91303.0,91302.0,0.41402803]
[1763594003631,0.00016431,91303.0,91302.0,0.41602803]
[1763594005634,0.3608,91311.0,91310.0,0.05103]
[1763594005823,0.41688,91311.0,91302.0,0.3628]
[1763594006024,0.04467,91303.0,91302.0,0.40592]
[1763594006226,0.1543192,91303.0,91302.0,0.40811803]
[1763594006632,0.1543192,91303.0,91302.0,0.40911803]
[1763594006933,0.1543192,91303.0,91302.0,0.38592803]
[1763594007134,0.04467,91303.0,91302.0,0.51776843]
[1763594007323,0.02213,91303.0,91302.0,0.51776843]
[1763594007524,0.15131,91307.0,91306.0,0.1547656]
[1763594007726,0.10664,91307.0,91306.0,0.15696363]
[1763594007934,0.00016431,91312.0,91311.0,0.1677396]
[1763594008131,0.00016431,91312.0,91311.0,0.16993763]
[1763594008334,0.04483431,91312.0,91311.0,0.04731803]
[1763594011139,0.15447271,91312.0,91311.0,0.04731803]
[1763594012042,0.51527271,91312.0,91311.0,0.00219803]
[1763594012431,0.40563431,91312.0,91311.0,0.00219803]
[1763594014941,0.40563431,91312.0,91311.0,0.02416803]
[1763594015245,0.40563431,91312.0,91311.0,0.04587803]
[1763594015441,0.36096431,91312.0,91311.0,0.04587803]
[1763594015644,0.00016431,91312.0,91311.0,0.04587803]
[1763594015845,0.00027375,91326.0,91325.0,0.04368]
[1763594016145,0.00027375,91326.0,91325.0,0.15550083]
[1763594016944,0.04541431,91335.0,91334.0,0.02197]
[1763594017237,0.04541431,91335.0,91334.0,0.04587803]
[1763594017438,0.00016431,91335.0,91334.0,0.04587803]
[1763594018040,0.10664,91346.0,91335.0,0.219221]
[1763594018241,0.10664,91346.0,91345.0,0.15547683]
[1763594018840,0.39615,91360.0,91359.0,0.153262]
[1763594019037,0.41872,91360.0,91359.0,0.02416803]
[1763594019345,0.41872,91360.0,91359.0,0.00219803]
[1763594020144,0.41972,91360.0,91359.0,0.00219803]
[1763594020446,0.52732,91360.0,91359.0,0.00219803]
[1763594021043,0.1548416,91351.0,91350.0,0.00016421]
[1763594021345,0.6222416,91351.0,91350.0,0.00016421]
[1763594023048,0.51265,91351.0,91350.0,0.00016421]
[1763594023237,0.51265,91351.0,91350.0,0.04604224]
[1763594023438,0.15185,91351.0,91350.0,0.00016421]
[1763594023753,0.04525,91312.0,91306.0,0.03866855]
[1763594023937,0.01267,91320.0,91309.0,0.00232018]
[1763594023938,0.04525,91310.0,91309.0,0.00232018]
[1763594025253,0.40605,91310.0,91309.0,0.00232018]
[1763594025453,0.40605,91310.0,91309.0,0.00332018]
[1763594025847,0.40605,91310.0,91309.0,0.02429018]
[1763594026151,0.38348,91310.0,91309.0,0.04600018]
[1763594026448,0.36096421,91319.0,91318.0,0.04368]
[1763594026753,0.40621421,91319.0,91318.0,0.00219803]
[1763594026956,0.36096421,91319.0,91318.0,0.04587803]
[1763594027142,0.00016421,91319.0,91318.0,0.04587803]
[1763594029455,0.3608,91327.0,91326.0,0.04368]
[1763594029754,0.3608,91327.0,91326.0,0.15549963]
[1763594030144,0.1066,91335.0,91334.0,0.153292]
[1763594030453,0.1066,91335.0,91334.0,0.15549003]
[1763594030753,0.1066,91335.0,91334.0,0.04587803]
[1763594031454,0.15185,91335.0,91334.0,0.00219803]
[1763594032155,0.15185,91335.0,91334.0,0.00319803]
[1763594032351,0.15185,91335.0,91334.0,0.04687803]
[1763594032544,0.12928,91335.0,91334.0,0.04587803]
[1763594033358,0.1066,91335.0,91334.0,0.04587803]
[1763594033950,0.15185,91335.0,91334.0,0.04587803]
[1763594034151,0.15185,91335.0,91334.0,0.00219803]
[1763594034456,0.15185,91335.0,91334.0,0.00319803]
[1763594035155,0.15185,91335.0,91334.0,0.001]
[1763594035359,0.04525,91326.0,91325.0,0.10978671]
[1763594035557,0.04525,91326.0,91325.0,0.11198474]
[1763594035850,0.04525,91326.0,91325.0,0.00236224]
[1763594037458,0.04525,91326.0,91325.0,0.00336224]
[1763594038157,0.04525,91326.0,91325.0,0.00436224]
[1763594038361,0.01267,91311.0,91310.0,0.1316108]
[1763594038663,0.04525,91311.0,91310.0,0.15551883]
[1763594039255,0.1548896,91311.0,91310.0,0.15551883]
[1763594039455,0.1548896,91311.0,91310.0,0.04587803]
[1763594039652,0.1675596,91311.0,91310.0,0.00219803]
[1763594040266,0.04525,91311.0,91310.0,0.15551883]
[1763594040563,0.34714559,91314.0,91313.0,0.1533172]
[1763594040758,0.34714559,91314.0,91313.0,0.15551523]
[1763594041350,0.04541421,91320.0,91319.0,0.10963]
[1763594041550,0.04541421,91320.0,91319.0,0.00219803]
[1763594043465,0.04541421,91320.0,91313.0,0.001]
[1763594043466,0.154466,91314.0,91313.0,0.001]
[1763594043863,0.1690596,91311.0,91310.0,0.3608]
[1763594044767,0.04499,91310.0,91309.0,2.15e-06]
[1763594045664,0.04499,91310.0,91309.0,0.00220018]
[1763594045866,0.04507877,91310.0,91309.0,0.00220018]
[1763594046067,8.877e-05,91310.0,91309.0,2.15e-06]
[1763594046466,0.1546404,91302.0,91301.0,0.00016421]
[1763594046667,0.04499,91287.0,91286.0,0.00027387]
[1763594046864,0.0414979,91287.0,91286.0,0.0024719]
[1763594047060,0.0414979,91287.0,91286.0,0.1331715]
[1763594047370,0.04159224,91287.0,91286.0,0.1542015]
[1763594047560,9.434e-05,91287.0,91286.0,0.1542015]
[1763594047768,9.434e-05,91287.0,91286.0,0.5150015]
[1763594047970,9.434e-05,91287.0,91286.0,0.5160015]
[1763594048365,0.04508434,91287.0,91286.0,0.1331715]
[1763594048560,0.04508434,91287.0,91286.0,0.1341715]
[1763594048962,0.04508434,91287.0,91286.0,0.0034719]
[1763594051572,9.434e-05,91287.0,91286.0,0.4063319]
[1763594051772,0.0001643,91296.0,91295.0,0.1517188]
[1763594051965,0.0001643,91296.0,91295.0,0.15391683]
[1763594052675,0.3608,91311.0,91310.0,0.04206]
[1763594052975,0.38364,91320.0,91319.0,0.02103]
[1763594053272,0.3608,91320.0,91319.0,0.15388803]
[1763594053577,0.42022,91320.0,91319.0,0.15388803]
[1763594054071,0.5298488,91320.0,91319.0,0.00219803]
[1763594054272,0.42022,91320.0,91319.0,0.11182803]
[1763594054465,0.42022,91320.0,91319.0,0.00219803]
[1763594054466,0.5308488,91320.0,91319.0,0.00219803]
[1763594054777,0.5318488,91320.0,91319.0,0.00219803]
[1763594055370,0.04499,91311.0,91310.0,0.0001643]
[1763594055570,0.40579,91311.0,91310.0,0.00236233]
[1763594056073,0.06142,91320.0,91319.0,0.10963]
[1763594056267,0.06142,91320.0,91319.0,0.11182803]
[1763594056464,0.06042,91320.0,91319.0,0.11182803]
[1763594056668,0.05942,91320.0,91319.0,0.11182803]
[1763594056876,0.05942,91320.0,91319.0,0.00219803]
[1763594057261,0.06042,91320.0,91319.0,0.00219803]
[1763594057877,0.06142,91320.0,91319.0,0.00219803]
[1763594059182,0.06142,91320.0,91319.0,0.02322803]
[1763594059569,0.06142,91320.0,91319.0,0.00219803]
[1763594061274,0.1710488,91320.0,91319.0,0.00219803]
[1763594061580,0.06142,91320.0,91319.0,0.00219803]
[1763594062568,0.06142,91320.0,91310.0,0.0001643]
[1763594062569,0.05942,91311.0,91310.0,0.0001643]
[1763594062764,0.42022,91311.0,91310.0,0.0001643]
[1763594063065,0.42022,91311.0,91310.0,0.00236233]
[1763594063881,0.39807,91311.0,91310.0,0.04442233]
[1763594064070,0.01443,91320.0,91310.0,0.00236233]
[1763594064266,0.05942,91320.0,91319.0,0.13066]
[1763594064477,0.05942,91320.0,91319.0,0.10963]
[1763594064778,0.05942,91320.0,91319.0,0.11182803]
[1763594065092,0.05942,91320.0,91310.0,0.0001643]
[1763594065093,0.05942,91311.0,91310.0,0.0001643]
[1763594065380,0.10656,91323.0,91310.0,0.0001643]
[1763594065381,0.1294,91323.0,91322.0,0.04206]
[1763594065571,0.1294,91323.0,91322.0,0.04425803]
[1763594065980,0.15155,91323.0,91322.0,0.04425803]
[1763594066983,0.15255,91323.0,91322.0,0.04425803]
[1763594067574,0.04599,91323.0,91322.0,0.04425803]
[1763594067770,0.04599,91323.0,91322.0,0.00219803]
[1763594068379,0.04699,91323.0,91322.0,0.00219803]
[1763594068886,0.04699,91323.0,91310.0,0.3609643]